fUST/lending_fUST_20251002
["ID","MTS","AMOUNT","RATE_DAILY","PERIOD"]
[388735437,1759341068263,-2255.76,0.00022465,2]
[388735438,1759341068272,-1087.38,0.00022465,2]
[388735440,1759341068281,-565.41,0.00022465,2]
[388735441,1759341068291,-1282.09,0.00022465,2]
[388735442,1759341068300,-842.17,0.00022465,2]
[388735443,1759341068310,-500.0,0.00022465,2]
[388735444,1759341068321,-1244.93,0.00022465,2]
[388735445,1759341068331,-648.03,0.00022465,2]
[388735446,1759341068340,-500.0,0.00022465,2]
[388735447,1759341068351,-151.0,0.00022465,7]
[388735448,1759341068360,-637.01,0.00022465,2]
[388735449,1759341068370,-982.62,0.00022465,2]
[388735450,1759341068379,-288.91,0.00022465,2]
[388735451,1759341068390,-1033.08,0.00022465,2]
[388735452,1759341068400,-500.0,0.00022465,2]
[388735453,1759341068410,-596.72,0.00022465,2]
[388735454,1759341068420,-342.62882807,0.00022465,2]
[388735455,1759341068431,-702.56,0.00022465,2]
[388735456,1759341068442,-1723.43,0.00022465,2]
[388735457,1759341068452,-525.98,0.00022465,2]
[388735458,1759341068463,-500.0,0.00022465,2]
[388735459,1759341068473,-500.0,0.00022465,2]
[388735460,1759341068483,-850.61,0.00022465,2]
[388735461,1759341068493,-811.21,0.00022465,2]
[388735462,1759341068504,-516.39,0.00022465,2]
[388735463,1759341068514,-332.606042,0.00022465,7]
[388735464,1759341068524,-332.606042,0.00022465,7]
[388735465,1759341068535,-332.606042,0.00022465,7]
[388735466,1759341068546,-332.606042,0.00022465,7]
[388735467,1759341068561,-907.21,0.00022465,2]
[388735468,1759341068572,-500.0,0.00022465,2]
[388735469,1759341068583,-601.34,0.00022465,2]
[388735470,1759341068595,-501.11,0.00022465,2]
[388735471,1759341068605,-151.0,0.00022465,7]
[388735472,1759341068615,-151.0,0.00022465,7]
[388735473,1759341068748,-151.0,0.00022465,7]
[388735474,1759341068759,-176.319987,0.00022465,7]
[388735475,1759341068772,-500.0,0.00022465,2]
[388735476,1759341068782,-1659.57,0.00022465,2]
[388735477,1759341068792,-522.75,0.00022465,2]
[388735478,1759341068803,-651.79,0.00022465,2]
[388735479,1759341068813,-812.63,0.00022465,2]
[388735480,1759341068824,-537.47,0.00022465,2]
[388735481,1759341068833,-623.22,0.00022465,2]
[388735482,1759341068843,-743.14,0.00022465,2]
[388735483,1759341068854,-500.0,0.00022465,2]
[388735484,1759341068865,-500.0,0.00022465,2]
[388735485,1759341068875,-782.64,0.00022465,2]
[388735486,1759341068886,-500.0,0.00022465,2]
[388735487,1759341068897,-634.89,0.00022465,2]
[388735488,1759341068906,-500.0,0.00022465,2]
[388735489,1759341068916,-631.54,0.00022465,2]
[388735490,1759341068926,-593.39,0.00022465,2]
[388735491,1759341068936,-1725.19,0.00022465,2]
[388735492,1759341068946,-612.05,0.00022465,2]
[388735493,1759341068956,-1330.12,0.00022465,2]
[388735494,1759341068966,-2633.63,0.00022465,2]
[388735495,1759341068977,-500.0,0.00022465,2]
[388735496,1759341068988,-501.31,0.00022465,2]
[388735497,1759341068998,-1304.72,0.00022465,2]
[388735498,1759341069008,-500.0,0.00022465,2]
[388735499,1759341069019,-1580.28,0.00022465,2]
[388735500,1759341069029,-549.0,0.00022489,2]
[388735501,1759341069041,-8402.89,0.000225,2]
[388735502,1759341069052,-700.0,0.00022555,2]
[388735503,1759341069063,-2000.0,0.00022576,2]
[388735504,1759341069073,-2000.0,0.00022597,2]
[388735505,1759341069083,-1435.46496311,0.00022646,2]
[388735506,1759341069093,-153.586922,0.0002265,28]
[388735507,1759341069104,-587.0,0.00022686,2]
[388735508,1759341069114,-549.0,0.00022725,2]
[388735509,1759341069125,-549.0,0.00022735,2]
[388735510,1759341069135,-712.11,0.00022739,2]
[388735511,1759341069145,-500.0,0.00022739,2]
[388735512,1759341069154,-500.0,0.00022739,2]
[388735513,1759341069164,-500.0,0.00022739,2]
[388735514,1759341069175,-317.75220867,0.00022739,2]
[388735515,1759341069185,-852.85,0.00022739,2]
[388735516,1759341069197,-787.61,0.00022739,2]
[388735517,1759341069207,-818.24,0.00022739,2]
[388735518,1759341069217,-528.56,0.00022739,2]
[388735519,1759341069227,-500.0,0.00022739,2]
[388735520,1759341069236,-500.0,0.00022739,2]
[388735521,1759341069245,-500.0,0.00022739,2]
[388735522,1759341069255,-936.29,0.00022739,2]
[388735523,1759341069265,-500.0,0.00022739,2]
[388735524,1759341069275,-922.28,0.00022739,2]
[388735525,1759341069284,-529.19,0.00022739,2]
[388735526,1759341069296,-500.0,0.00022739,2]
[388735527,1759341069311,-500.0,0.00022739,2]
[388735528,1759341069322,-500.0,0.00022739,2]
[388735529,1759341069332,-500.0,0.00022739,2]
[388735530,1759341069341,-500.0,0.00022739,2]
[388735531,1759341069352,-763.2,0.00022739,2]
[388735532,1759341069362,-1386.52,0.00022739,2]
[388735533,1759341069372,-500.0,0.00022739,2]
[388735534,1759341069382,-151.0,0.00022739,7]
[388735535,1759341069392,-888.68,0.00022739,2]
[388735536,1759341069402,-500.0,0.00022739,2]
[388735537,1759341069413,-500.0,0.00022739,2]
[388735538,1759341069423,-2255.76,0.00022739,2]
[388735539,1759341069433,-1087.38,0.00022739,2]
[388735540,1759341069443,-565.41,0.00022739,2]
[388735541,1759341069453,-1282.09,0.00022739,2]
[388735542,1759341069463,-842.17,0.00022739,2]
[388735543,1759341069474,-642.5,0.00022739,2]
[388735544,1759341069483,-1244.93,0.00022739,2]
[388735545,1759341069493,-648.03,0.00022739,2]
[388735546,1759341069503,-500.0,0.00022739,2]
[388735547,1759341069513,-637.01,0.00022739,2]
[388735548,1759341069522,-982.62,0.00022739,2]
[388735549,1759341069534,-1033.08,0.00022739,2]
[388735550,1759341069546,-500.0,0.00022739,2]
[388735551,1759341069558,-702.56,0.00022739,2]
[388735552,1759341069568,-1723.43,0.00022739,2]
[388735553,1759341069578,-525.98,0.00022739,2]
[388735554,1759341069587,-500.0,0.00022739,2]
[388735555,1759341069598,-500.0,0.00022739,2]
[388735556,1759341069608,-850.61,0.00022739,2]
[388735557,1759341069617,-811.21,0.00022739,2]
[388735558,1759341069627,-516.39,0.00022739,2]
[388735559,1759341069638,-907.21,0.00022739,2]
[388735560,1759341069647,-500.0,0.00022739,2]
[388735561,1759341069658,-601.34,0.00022739,2]
[388735562,1759341069667,-501.11,0.00022739,2]
[388735563,1759341069677,-500.0,0.00022739,2]
[388735564,1759341069686,-1659.57,0.00022739,2]
[388735565,1759341069696,-522.75,0.00022739,2]
[388735566,1759341069706,-651.79,0.00022739,2]
[388735567,1759341069716,-812.63,0.00022739,2]
[388735568,1759341069725,-537.47,0.00022739,2]
[388735569,1759341069735,-623.22,0.00022739,2]
[388735570,1759341069747,-743.14,0.00022739,2]
[388735571,1759341069756,-500.0,0.00022739,2]
[388735572,1759341069766,-500.0,0.00022739,2]
[388735573,1759341069776,-782.64,0.00022739,2]
[388735574,1759341069786,-500.0,0.00022739,2]
[388735575,1759341069797,-634.89,0.00022739,2]
[388735576,1759341069806,-500.0,0.00022739,2]
[388735577,1759341069816,-631.54,0.00022739,2]
[388735578,1759341069828,-593.39,0.00022739,2]
[388735579,1759341069838,-1725.19,0.00022739,2]
[388735580,1759341069847,-612.05,0.00022739,2]
[388735581,1759341069857,-1330.12,0.00022739,2]
[388735582,1759341069866,-2633.63,0.00022739,2]
[388735583,1759341069876,-151.0,0.00022739,7]
[388735584,1759341069886,-500.0,0.00022739,2]
[388735585,1759341069896,-501.31,0.00022739,2]
[388735586,1759341069907,-1304.72,0.00022739,2]
[388735587,1759341069917,-500.0,0.00022739,2]
[388735588,1759341069926,-1580.28,0.00022739,2]
[388735589,1759341069936,-198.0,0.0002274,2]
[388735590,1759341069946,-151.0,0.0002274,2]
[388735591,1759341069955,-151.0,0.0002274,2]
[388735592,1759341069965,-245.0,0.0002274,2]
[388735593,1759341069974,-245.0,0.0002274,2]
[388735594,1759341069984,-500.0,0.0002274,2]
[388735595,1759341069993,-10419.83564526,0.0002276,2]
[388735596,1759341070002,-3500.0,0.0002276,2]
[388735597,1759341070012,-3000.0,0.0002276,2]
[388735598,1759341070022,-1435.46496316,0.00022786,2]
[388735599,1759341070032,-549.0,0.00022864,2]
[388735600,1759341070041,-460.0,0.000229,2]
[388735601,1759341070051,-2500.0,0.0002297,2]
[388735602,1759341070061,-500.0,0.00022973,2]
[388735603,1759341070070,-500.0,0.00022973,2]
[388735604,1759341070081,-500.0,0.00022973,2]
[388735605,1759341070091,-500.0,0.00022973,2]
[388735606,1759341070102,-150.0,0.00022973,2]
[388735607,1759341070112,-500.0,0.00022973,2]
[388735608,1759341070122,-379821.57961428,0.00023,2]
[388735609,1759341070537,-268.50002,0.00019178,2]
[388735610,1759341070590,-231.49998,0.00019178,2]
[388735611,1759341070601,-876.06,0.00019178,2]
[388735612,1759341070610,-535.93,0.00019178,2]
[388735613,1759341070620,-310.16662208,0.00019452,2]
[388735614,1759341070630,-500.0,0.00019452,2]
[388735615,1759341070639,-876.06,0.00019452,2]
[388735616,1759341070649,-500.0,0.00019726,2]
[388735617,1759341070659,-876.06,0.00019726,2]
[388735618,1759341070668,-876.06,0.0002,2]
[388735619,1759341070678,-876.06,0.00020273,2]
[388735620,1759341070688,-876.06,0.00020547,2]
[388735621,1759341070697,-160.0,0.00020687,2]
[388735622,1759341070706,-876.06,0.00020821,2]
[388735623,1759341070715,-876.06,0.00021095,2]
[388735624,1759341070725,-876.06,0.00021369,2]
[388735625,1759341070735,-876.06,0.00021643,2]
[388735626,1759341070744,-876.06,0.00021917,2]
[388735627,1759341070753,-2766.66,0.00022191,2]
[388735628,1759341070762,-876.06,0.00022191,2]
[388735629,1759341070771,-2766.66,0.00022465,2]
[388735630,1759341070781,-876.06,0.00022465,2]
[388735631,1759341070790,-2766.66,0.00022739,2]
[388735632,1759341070800,-876.06,0.00022739,2]
[388735633,1759341070809,-4250.52818638,0.00023,2]
[388735634,1759341070820,-29999.69733741,0.00023,2]
[388735635,1759341070954,-4054.39325301,0.00023,2]
[388735636,1759341070965,-642.19313161,0.00023,2]
[388735638,1759341083485,417.15472785,0.00025,30]
[388735639,1759341086113,167.471281,0.00010182,2]
[388735640,1759341086449,167.471281,0.00013576,2]
[388735641,1759341086542,167.471281,0.0001697,2]
[388735647,1759341103887,5107.01832443,0.00033902,60]
[388735648,1759341106989,500.0,0.00027397,120]
[388735649,1759341132128,1082.88228564,0.00019078,2]
[388735651,1759341153512,235.80195389,0.00019077,2]
[388735652,1759341153543,308.56426461,0.00019077,2]
[388735653,1759341154635,500.0,0.00019077,2]
[388735654,1759341154663,492.8236761,0.00019077,2]
[388735655,1759341154685,7.1763239,0.00019077,2]
[388735656,1759341154712,500.0,0.00019077,2]
[388735657,1759341154739,500.0,0.00019077,2]
[388735658,1759341154768,500.0,0.00019077,2]
[388735659,1759341154795,500.0,0.00019077,2]
[388735660,1759341154822,500.0,0.00019077,2]
[388735661,1759341154853,500.0,0.00019077,2]
[388735662,1759341154879,500.0,0.00019077,2]
[388735663,1759341154910,500.0,0.00019077,2]
[388735664,1759341154949,259.21540725,0.00019077,2]
[388735665,1759341154975,260.4197466,0.00019077,2]
[388735666,1759341155002,500.0,0.00019077,2]
[388735667,1759341155027,228.02947392,0.00019077,2]
[388735668,1759341155054,500.0,0.00019077,2]
[388735669,1759341155082,500.0,0.00019077,2]
[388735670,1759341155108,500.0,0.00019077,2]
[388735671,1759341155135,500.0,0.00019077,2]
[388735672,1759341155162,500.0,0.00019077,2]
[388735673,1759341155188,500.0,0.00019077,2]
[388735674,1759341155218,500.0,0.00019077,2]
[388735675,1759341155245,500.0,0.00019077,2]
[388735676,1759341155271,500.0,0.00019077,2]
[388735677,1759341155306,245.16904833,0.00019077,2]
[388735678,1759341155465,254.83095167,0.00019077,2]
[388735679,1759341155494,500.0,0.00019077,2]
[388735680,1759341155526,500.0,0.00019077,2]
[388735681,1759341155553,500.0,0.00019077,2]
[388735682,1759341155581,455.56531392,0.00019077,2]
[388735683,1759341155611,500.0,0.00019077,2]
[388735684,1759341155639,500.0,0.00019077,2]
[388735685,1759341155667,500.0,0.00019077,2]
[388735686,1759341155694,500.0,0.00019077,2]
[388735687,1759341155726,500.0,0.00019077,2]
[388735688,1759341155761,500.0,0.00019077,2]
[388735689,1759341155788,500.0,0.00019077,2]
[388735690,1759341155814,500.0,0.00019077,2]
[388735691,1759341156312,157.83828369,0.00019077,2]
[388735692,1759341156450,-3631.77545072,0.00019078,2]
[388735693,1759341156469,-10000.01,0.00019078,2]
[388735694,1759341159128,-10000.01,0.00019078,2]
[388735695,1759341159254,-10000.01,0.00019078,2]
[388735696,1759341159369,-10000.01,0.00019078,2]
[388735697,1759341159496,-10000.01,0.00019078,2]
[388735698,1759341161185,-10000.01,0.00019078,2]
[388735699,1759341161365,-10000.01,0.00019078,2]
[388735700,1759341161488,-10000.01,0.00019078,2]
[388735701,1759341177414,499.99999999,0.00019077,2]
[388735702,1759341182632,300.0,0.00019077,2]
[388735703,1759341242635,300.0,0.00019077,2]
[388735704,1759341243212,-8900.01000001,0.00019078,2]
[388735705,1759341243400,-10000.01,0.00019078,2]
[388735706,1759341243544,-10000.01,0.00019078,2]
[388735707,1759341243668,-10000.01,0.00019078,2]
[388735708,1759341243800,-10000.01,0.00019078,2]
[388735709,1759341243914,-10000.01,0.00019078,2]
[388735710,1759341244059,-10000.01,0.00019078,2]
[388735711,1759341244190,-10000.01,0.00019078,2]
[388735712,1759341244336,-10000.01,0.00019078,2]
[388735713,1759341244613,-10000.01,0.00019078,2]
[388735714,1759341250934,-10000.01,0.00019078,2]
[388735715,1759341251266,-10000.01,0.00019078,2]
[388735716,1759341251394,-10000.01,0.00019078,2]
[388735717,1759341251508,-10000.01,0.00019078,2]
[388735718,1759341251622,-10000.01,0.00019078,2]
[388735719,1759341251774,-10000.01,0.00019078,2]
[388735720,1759341251903,-10000.01,0.00019078,2]
[388735721,1759341252000,-10000.01,0.00019078,2]
[388735722,1759341252097,-10000.01,0.00019078,2]
[388735723,1759341252258,-10000.01,0.00019078,2]
[388735724,1759341262543,196.374294,0.00018549,2]
[388735725,1759341264690,500.0,0.00019077,2]
[388735726,1759341264717,500.0,0.00019077,2]
[388735727,1759341264745,500.0,0.00019077,2]
[388735728,1759341264771,192.75364546,0.00019077,2]
[388735729,1759341264800,500.0,0.00019077,2]
[388735730,1759341264827,500.0,0.00019077,2]
[388735731,1759341264945,500.0,0.00019077,2]
[388735732,1759341264971,500.0,0.00019077,2]
[388735733,1759341265006,382.46709889,0.00019077,2]
[388735734,1759341265033,500.0,0.00019077,2]
[388735735,1759341265059,500.0,0.00019077,2]
[388735736,1759341265091,500.0,0.00019077,2]
[388735737,1759341265130,605.17262706,0.00019077,2]
[388735739,1759341268376,5000.0,0.00019077,2]
[388735740,1759341284318,5000.0,0.00019077,2]
[388735741,1759341301242,0.01,0.00019076,2]
[388735742,1759341301263,299.99,0.00019076,2]
[388735743,1759341301992,300.0,0.00019076,2]
[388735744,1759341302160,300.0,0.00019076,2]
[388735745,1759341302191,300.0,0.00019076,2]
[388735746,1759341302272,300.0,0.00019076,2]
[388735747,1759341306363,1200.0,0.00019076,2]
[388735748,1759341306657,5000.0,0.00019077,2]
[388735749,1759341313183,-720.0,0.00021515,20]
[388735750,1759341330108,5000.0,0.0001922,14]
[388735751,1759341334012,171.0,0.00024404,120]
[388735753,1759341335220,171.0,0.00025624,120]
[388735754,1759341336573,171.0,0.00026906,120]
[388735755,1759341337824,171.0,0.00028251,120]
[388735757,1759341353553,4598.70484566,0.0001922,14]
[388735759,1759341362327,300.0,0.00019076,2]
[388735760,1759341374784,200.0,0.00033902,120]
[388735761,1759341413970,-259.0,0.00022329,7]
[388735762,1759341414003,-332.606042,0.00023,7]
[388735763,1759341414030,-332.606042,0.00023,7]
[388735764,1759341414055,-332.606042,0.00023,7]
[388735765,1759341414080,-332.606032,0.00023,7]
[388735766,1759341414106,-151.0,0.00023,7]
[388735767,1759341414133,-151.0,0.00023,7]
[388735768,1759341414159,-108.575842,0.00023,7]
[388735769,1759341416485,-42.424158,0.00023,7]
[388735770,1759341416512,-151.0,0.00023,7]
[388735771,1759341416539,-151.0,0.00023,7]
[388735772,1759341416566,-151.0,0.00023,7]
[388735773,1759341416593,-224.486967,0.00023,7]
[388735774,1759341416619,-151.0,0.00023,7]
[388735775,1759341416644,-151.0,0.00023,7]
[388735776,1759341422145,1759.68371413,0.00019,2]
[388735778,1759341422578,240.33628587,0.00019076,2]
[388735779,1759341422601,59.66371413,0.00019076,2]
[388735781,1759341441497,1200.0,0.00019076,2]
[388735782,1759341463948,-151.0,0.00022739,7]
[388735783,1759341463972,-153.362474,0.00022739,7]
[388735784,1759341464004,-153.586922,0.0002326,14]
[388735785,1759341464030,-151.0,0.00023287,7]
[388735786,1759341464053,-151.0,0.00023287,7]
[388735787,1759341464240,-151.0,0.00023287,7]
[388735788,1759341464268,-151.0,0.00023287,7]
[388735789,1759341464293,-151.0,0.00023287,7]
[388735790,1759341464318,-151.0,0.00023287,7]
[388735791,1759341464341,-170.503986,0.00023287,7]
[388735793,1759341481043,-151.0,0.00023561,7]
[388735794,1759341481074,-1849.0,0.000236,10]
[388735795,1759341482215,300.0,0.00019076,2]
[388735796,1759341488788,-725.0,0.000236,10]
[388735797,1759341496777,-170.0,0.00022301,7]
[388735798,1759341496819,-183.0,0.00023397,10]
[388735799,1759341496848,-225.42330452,0.000236,10]
[388735800,1759341496870,-161.57669548,0.000236,7]
[388735801,1759341533990,172.44518628,0.00018977,2]
[388735803,1759341539022,172.44518628,0.00019,2]
[388735805,1759341542481,300.0,0.00019076,2]
[388735807,1759341569812,7795.45591331,0.00019077,2]
[388735808,1759341569835,10000.01,0.00019077,2]
[388735809,1759341569860,10000.01,0.00019077,2]
[388735810,1759341569883,7328.95588276,0.00019077,2]
[388735811,1759341574346,2671.05411724,0.00019077,2]
[388735812,1759341574368,2328.94588276,0.00019077,2]
[388735813,1759341577131,-240.9,0.00019168,3]
[388735814,1759341577157,-459.1,0.00019168,3]
[388735815,1759341581660,-263.63,0.00019168,3]
[388735816,1759341581723,-151.0,0.0002,3]
[388735817,1759341582326,5000.0,0.00019077,2]
[388735818,1759341590175,-222.81231467,0.00019077,2]
[388735819,1759341590202,-350.92253704,0.00019077,2]
[388735820,1759341590229,-500.0,0.00019077,2]
[388735821,1759341590255,-500.0,0.00019077,2]
[388735822,1759341590279,-500.0,0.00019077,2]
[388735823,1759341590303,-500.0,0.00019077,2]
[388735824,1759341590329,-500.0,0.00019077,2]
[388735825,1759341590353,-401.42349959,0.00019077,2]
[388735826,1759341590379,-124.8416487,0.00019077,2]
[388735828,1759341600788,2671.06411724,0.00018214,2]
[388735829,1759341600813,10000.01,0.00018214,2]
[388735830,1759341600836,4423.86982606,0.00018214,2]
[388735833,1759341601525,300.0,0.00019076,2]
[388735835,1759341601930,300.0,0.00019076,2]
[388735836,1759341601991,300.0,0.00019076,2]
[388735837,1759341602018,300.0,0.00019076,2]
[388735838,1759341605252,-300.0,0.00019076,2]
[388735839,1759341606888,2358.2792056,0.00018314,2]
[388735840,1759341607275,1200.0,0.00019076,2]
[388735841,1759341609847,319.34,0.00033896,60]
[388735842,1759341647414,172.0,0.00024299,120]
[388735843,1759341648995,172.0,0.00025514,120]
[388735844,1759341650492,172.0,0.0002679,120]
[388735845,1759341651976,172.0,0.00028129,120]
[388735847,1759341662595,300.0,0.00019076,2]
[388735848,1759341664861,203.62,0.000189,2]
[388735849,1759341666419,-151.0,0.000203,3]
[388735850,1759341666444,-151.0,0.000205,3]
[388735851,1759341666470,-481.8,0.00020538,3]
[388735852,1759341666503,-151.0,0.000207,3]
[388735853,1759341666535,-151.0,0.000209,3]
[388735865,1759341672237,200.0,0.00033896,120]
[388735866,1759341674188,-151.0,0.00019077,2]
[388735867,1759341674218,-151.0,0.00019077,2]
[388735868,1759341674243,-151.0,0.00019077,2]
[388735869,1759341674270,-375.1583513,0.00019077,2]
[388735870,1759341674297,-516.03900194,0.00019077,2]
[388735871,1759341674322,-181.11091432,0.00019077,2]
[388735872,1759341674347,-293.93232714,0.00019077,2]
[388735873,1759341674372,-500.0,0.00019077,2]
[388735874,1759341674396,-500.0,0.00019077,2]
[388735875,1759341674422,-80.7594053,0.00019077,2]
[388735876,1759341702377,1539.72324989,0.00019,2]
[388735877,1759341722329,300.0,0.00019076,2]
[388735879,1759341724336,500.0,0.00027397,120]
[388735884,1759341740582,1200.0,0.00019076,2]
[388735886,1759341751049,-266.084834,0.00022191,7]
[388735887,1759341751073,-266.084834,0.00022191,7]
[388735888,1759341751098,-266.084834,0.00022191,7]
[388735889,1759341751122,-151.0,0.00022191,7]
[388735890,1759341751146,-50.745498,0.00022191,7]
[388735892,1759341755328,-215.339336,0.00022191,7]
[388735893,1759341755354,-151.0,0.00022191,7]
[388735894,1759341755378,-151.0,0.00022191,7]
[388735895,1759341755404,-151.0,0.00022191,7]
[388735896,1759341755428,-151.0,0.00022191,7]
[388735897,1759341755453,-176.319987,0.00022191,7]
[388735898,1759341755477,-4.340677,0.00022191,7]
[388735899,1759341761926,-147.718149,0.00022191,7]
[388735900,1759341761953,-151.0,0.00022191,7]
[388735901,1759341766524,1000.0,0.00018164,2]
[388735905,1759341782620,300.0,0.00019076,2]
[388735906,1759341809681,998.38754451,0.00018309,2]
[388735907,1759341809704,10000.01,0.00018309,2]
[388735908,1759341809729,10000.01,0.00018309,2]
[388735909,1759341809752,10000.01,0.00018309,2]
[388735910,1759341809775,10000.01,0.00018309,2]
[388735911,1759341809798,10000.01,0.00018309,2]
[388735912,1759341809822,819.00199639,0.00018309,2]
[388735915,1759341822317,4096.456501,0.00018164,2]
[388735917,1759341842314,300.0,0.00019076,2]
[388735923,1759341895913,-151.0,0.00022279,7]
[388735924,1759341895939,-215.061325,0.00022279,7]
[388735925,1759341895963,-215.061325,0.00022279,7]
[388735926,1759341895987,-215.061325,0.00022279,7]
[388735927,1759341896011,-3.816025,0.00022279,7]
[388735929,1759341902095,207.0,0.00019076,2]
[388735930,1759341903102,300.0,0.00019076,2]
[388735931,1759341906468,1200.0,0.00019076,2]
[388735941,1759341930745,172.0,0.00024142,120]
[388735947,1759341962859,300.0,0.00019076,2]
[388735948,1759341963310,-419.2405947,0.00019077,2]
[388735949,1759341963340,-500.0,0.00019077,2]
[388735950,1759341963369,-500.0,0.00019077,2]
[388735951,1759341963398,-500.0,0.00019077,2]
[388735952,1759341963426,-500.0,0.00019077,2]
[388735953,1759341963453,-500.0,0.00019077,2]
[388735954,1759341963481,-500.0,0.00019077,2]
[388735955,1759341963508,-500.0,0.00019077,2]
[388735956,1759341963534,-380.25078816,0.00019077,2]
[388735957,1759341963560,-500.0,0.00019077,2]
[388735958,1759341963590,-158.55782789,0.00019077,2]
[388735959,1759341964197,-500.0,0.00019077,2]
[388735960,1759341964228,-445.47950655,0.00019077,2]
[388735961,1759341964258,-500.0,0.00019077,2]
[388735962,1759341964286,-500.0,0.00019077,2]
[388735963,1759341964315,-289.11841149,0.00019077,2]
[388735964,1759341964344,-500.0,0.00019077,2]
[388735965,1759341964372,-500.0,0.00019077,2]
[388735966,1759341964399,-352.89468528,0.00019077,2]
[388735967,1759341964426,-500.0,0.00019077,2]
[388735968,1759341964452,-150.0,0.00019077,2]
[388735976,1759341971574,200.0,0.00033921,120]
[388735981,1759341975149,152.0,0.00019077,2]
[388735982,1759341983106,599.97988972,0.00019077,2]
[388735983,1759341983577,773.04490364,0.00019073,2]
[388735984,1759341983603,574.21293997,0.00019073,2]
[388735985,1759341991175,5000.0,0.00019077,2]
[388735986,1759341999584,3261.20419392,0.00019077,2]
[388735988,1759342022594,300.0,0.00019077,2]
[388735989,1759342037383,500.0,0.00027397,120]
[388735990,1759342040903,864.59286611,0.00019077,2]
[388735991,1759342040926,335.40713389,0.00019077,2]
[388736007,1759342080476,283.34,0.00016384,2]
[388736008,1759342082298,300.0,0.00019077,2]
[388736009,1759342085781,-2000.0,0.00019078,2]
[388736010,1759342085809,-172.815,0.00019078,2]
[388736011,1759342088385,4789.18695857,0.00019078,2]
[388736013,1759342101151,865.19304143,0.00019078,2]
[388736014,1759342101175,4134.80695857,0.00019078,2]
[388736016,1759342109106,4332.07011425,0.00019078,2]
[388736017,1759342124232,5000.0,0.00019078,2]
[388736018,1759342132090,667.93988575,0.00019078,2]
[388736019,1759342132113,4332.06011425,0.00019078,2]
[388736020,1759342142616,300.0,0.00019077,2]
[388736021,1759342155016,1891.24661331,0.00019078,2]
[388736023,1759342177579,3108.75338669,0.00019078,2]
[388736024,1759342183496,297.0,9.3e-07,2]
[388736025,1759342192826,70.94988575,0.00019078,2]
[388736026,1759342192848,4929.05011425,0.00019078,2]
[388736027,1759342200644,1375.25661331,0.00019078,2]
[388736030,1759342202588,300.0,0.00019077,2]
[388736031,1759342207009,804.0,0.00019077,2]
[388736032,1759342223068,3624.74338669,0.00019078,2]
[388736087,1759342232310,-15902.95190517,0.00019078,2]
[388736094,1759342232364,-2035.00000762,0.00019078,2]
[388736096,1759342232375,-69529.99263648,0.00019078,2]